Workbook

Sheet Všechny záznamy
A1: Id záznamu | B1: Sloupec | C1: Login uživatele | D1: Společnost | E1: Činnost | F1: Od | G1: Délka | H1: Do | I1: Vloženo v
A2: 108 | C2: Osoba 1 | D2: Společnost 1 | E2: Odpočinek | F2: 2016-07-08T13:54:00 | G2: =H2-F2 -> 1.15740695e-05 | H2: 2016-07-08T13:54:01 | I2: 2016-07-08 14:56:11
A3: 231 | C3: Osoba 2 | D3: Společnost 2 | E3: Kreslení | F3: 2016-07-11T13:15:30 | G3: 1.15740695e-05 | H3: 2016-07-11T13:15:31 | I3: 2016-07-11 12:42:17
A4: 260 | C4: Osoba 3 | D4: Společnost 3 | E4: Jídlo | F4: 2016-07-12T19:35:10 | G4: 1.15740695e-05 | H4: 2016-07-12T19:35:11 | I4: 2016-07-12 06:24:04
A5: 276 | C5: Osoba 3 | D5: Společnost 4 | E5: Kreslení | F5: 2016-07-14T14:28:09 | G5: 1.15740695e-05 | H5: 2016-07-14T14:28:10 | I5: 2016-07-14 15:11:15
A6: 277 | C6: Osoba 3 | D6: Společnost 5 | E6: Pití | F6: 2016-07-14T14:28:30 | G6: 1.15740695e-05 | H6: 2016-07-14T14:28:31 | I6: 2016-07-14 15:11:15
A7: 278 | C7: Osoba 3 | D7: Společnost 6 | E7: Procházka | F7: 2016-07-14T14:30:12 | G7: 1.15740695e-05 | H7: 2016-07-14T14:30:13 | I7: 2016-07-14 15:11:15
A8: 281 | C8: Osoba 3 | D8: Společnost 4 | E8: Odpočinek | F8: 2016-07-14T14:47:17 | G8: 1.15740695e-05 | H8: 2016-07-14T14:47:18 | I8: 2016-07-14 15:11:15
A9: 330 | C9: Osoba 4 | D9: Společnost 7 | E9: Lození | F9: 2016-07-18T02:45:13 | G9: 1.15740695e-05 | H9: 2016-07-18T02:45:14 | I9: 2016-07-18 12:18:09
A10: 340 | C10: Osoba 5 | D10: Společnost 8 | E10: Jídlo | F10: 2016-07-18T02:40:50 | G10: 1.15740695e-05 | H10: 2016-07-18T02:40:51 | I10: 2016-07-18 12:18:09
A11: 344 | C11: Osoba 5 | D11: Společnost 9 | E11: Učení | F11: 2016-07-18T02:42:24 | G11: 1.15740695e-05 | H11: 2016-07-18T02:42:25 | I11: 2016-07-18 12:18:09
A12: 616 | C12: Osoba 5 | D12: Společnost 10 | E12: Učení | F12: 2016-07-20T18:19:12 | G12: 1.15740695e-05 | H12: 2016-07-20T18:19:13 | I12: 2016-07-20 09:36:06
A13: 668 | C13: Osoba 6 | D13: Společnost 9 | E13: Kreslení | F13: 2016-08-01T17:41:14 | G13: 1.15740695e-05 | H13: 2016-08-01T17:41:15 | I13: 2016-08-01 07:12:35
A14: 1005 | C14: Osoba 7 | D14: Společnost 11 | E14: Pití | F14: 2016-08-01T23:52:40 | G14: 1.15740695e-05 | H14: 2016-08-01T23:52:41 | I14: 2016-08-01 14:20:53
A15: 1745 | C15: Osoba 8 | D15: Společnost 12 | E15: Pití | F15: 2016-08-08T14:12:57 | G15: 1.15740695e-05 | H15: 2016-08-08T14:12:58 | I15: 2016-08-08 14:15:05
A16: 1746 | C16: Osoba 8 | D16: Společnost 12 | E16: Pocec | F16: 2016-08-08T14:13:08 | G16: 1.15740695e-05 | H16: 2016-08-08T14:13:09 | I16: 2016-08-08 14:15:05
A17: 1748 | C17: Osoba 8 | D17: Společnost 12 | E17: Kreslení | F17: 2016-08-08T14:13:24 | G17: 1.15740695e-05 | H17: 2016-08-08T14:13:25 | I17: 2016-08-08 14:15:05
A18: 1831 | C18: Osoba 9 | D18: Společnost 13 | E18: Kreslení | F18: 2016-08-11T06:46:11 | G18: 1.15740695e-05 | H18: 2016-08-11T06:46:12 | I18: 2016-08-11 06:46:15
A19: 1863 | C19: Osoba 10 | D19: Společnost 10 | E19: Kreslení | F19: 2016-08-11T07:11:27 | G19: 1.15740695e-05 | H19: 2016-08-11T07:11:28 | I19: 2016-08-11 07:11:30
A20: 1889 | C20: Osoba 11 | D20: Společnost 14 | E20: Odpočinek | F20: 2016-08-11T07:14:09 | G20: 1.15740695e-05 | H20: 2016-08-11T07:14:10 | I20: 2016-08-11 07:14:12
A21: 2572 | C21: Osoba 10 | D21: Společnost 15 | E21: Jídlo | F21: 2016-08-16T06:57:04 | G21: 1.15740695e-05 | H21: 2016-08-16T06:57:05 | I21: 2016-08-16 06:57:07
A22: 14529 | C22: Osoba 11 | D22: Společnost 16 | E22: Kreslení | F22: 2016-08-19T14:40:47 | G22: 1.15740695e-05 | H22: 2016-08-19T14:40:48 | I22: 2016-08-19 09:00:39
A23: 36769 | C23: Osoba 12 | D23: Společnost 17 | E23: Procházka | F23: 2016-08-21T08:40:07 | G23: 1.15740695e-05 | H23: 2016-08-21T08:40:08 | I23: 2016-08-21 12:17:35
A24: 115094 | C24: Osoba 13 | D24: Společnost 18 | E24: Odpočinek | F24: 2016-09-18T18:19:25 | G24: 1.15740695e-05 | H24: 2016-09-18T18:19:26 | I24: 2016-09-18 04:34:34
A25: 115099 | C25: Osoba 13 | D25: Společnost 19 | E25: Odpočinek | F25: 2016-09-18T18:25:23 | G25: 1.15740695e-05 | H25: 2016-09-18T18:25:24 | I25: 2016-09-18 04:34:34
A26: 115102 | C26: Osoba 13 | D26: Společnost 20 | E26: Odpočinek | F26: 2016-09-18T18:28:31 | G26: 1.15740695e-05 | H26: 2016-09-18T18:28:32 | I26: 2016-09-18 04:34:34
A27: 115108 | C27: Osoba 13 | D27: Společnost 21 | E27: Pocec | F27: 2016-09-18T19:03:56 | G27: 1.15740695e-05 | H27: 2016-09-18T19:03:57 | I27: 2016-09-18 04:34:34
A28: 115119 | C28: Osoba 13 | D28: Společnost 22 | E28: Učení | F28: 2016-09-18T19:28:48 | G28: 1.15740695e-05 | H28: 2016-09-18T19:28:49 | I28: 2016-09-18 04:34:35
A29: 115126 | C29: Osoba 13 | D29: Společnost 23 | E29: Jídlo | F29: 2016-09-18T19:42:37 | G29: 1.15740695e-05 | H29: 2016-09-18T19:42:38 | I29: 2016-09-18 04:34:35
A30: 115128 | C30: Osoba 13 | D30: Společnost 24 | E30: Odpočinek | F30: 2016-09-18T19:46:20 | G30: 1.15740695e-05 | H30: 2016-09-18T19:46:21 | I30: 2016-09-18 04:34:35
A31: 115136 | C31: Osoba 13 | D31: Společnost 25 | E31: Pití | F31: 2016-09-18T20:04:10 | G31: 1.15740695e-05 | H31: 2016-09-18T20:04:11 | I31: 2016-09-18 04:34:35
A32: 115139 | C32: Osoba 13 | D32: Společnost 26 | E32: Pití | F32: 2016-09-18T20:10:56 | G32: 1.15740695e-05 | H32: 2016-09-18T20:10:57 | I32: 2016-09-18 04:34:35
A33: 115148 | C33: Osoba 13 | D33: Společnost 27 | E33: Učení | F33: 2016-09-18T20:21:04 | G33: 1.15740695e-05 | H33: 2016-09-18T20:21:05 | I33: 2016-09-18 04:34:35
A34: 117657 | C34: Osoba 14 | D34: Společnost 28 | E34: Učení | F34: 2016-09-22T17:59:31 | G34: 1.15740695e-05 | H34: 2016-09-22T17:59:32 | I34: 2016-09-22 06:37:36
A35: 117866 | C35: Osoba 13 | D35: Společnost 18 | E35: Odpočinek | F35: 2016-09-22T18:19:25 | G35: 1.15740695e-05 | H35: 2016-09-22T18:19:26 | I35: 2016-09-22 08:27:48
A36: 117871 | C36: Osoba 13 | D36: Společnost 19 | E36: Odpočinek | F36: 2016-09-22T18:25:23 | G36: 1.15740695e-05 | H36: 2016-09-22T18:25:24 | I36: 2016-09-22 08:27:48
A37: 117874 | C37: Osoba 13 | D37: Společnost 20 | E37: Odpočinek | F37: 2016-09-22T18:28:31 | G37: 1.15740695e-05 | H37: 2016-09-22T18:28:32 | I37: 2016-09-22 08:27:48
A38: 117880 | C38: Osoba 13 | D38: Společnost 21 | E38: Pocec | F38: 2016-09-22T19:03:56 | G38: 1.15740695e-05 | H38: 2016-09-22T19:03:57 | I38: 2016-09-22 08:27:48
A39: 117891 | C39: Osoba 13 | D39: Společnost 22 | E39: Učení | F39: 2016-09-22T19:28:48 | G39: 1.15740695e-05 | H39: 2016-09-22T19:28:49 | I39: 2016-09-22 08:27:48
A40: 117898 | C40: Osoba 13 | D40: Společnost 23 | E40: Jídlo | F40: 2016-09-22T19:42:37 | G40: 1.15740695e-05 | H40: 2016-09-22T19:42:38 | I40: 2016-09-22 08:27:48
A41: 117900 | C41: Osoba 13 | D41: Společnost 24 | E41: Odpočinek | F41: 2016-09-22T19:46:20 | G41: 1.15740695e-05 | H41: 2016-09-22T19:46:21 | I41: 2016-09-22 08:27:48
A42: 117908 | C42: Osoba 13 | D42: Společnost 25 | E42: Pití | F42: 2016-09-22T20:04:10 | G42: 1.15740695e-05 | H42: 2016-09-22T20:04:11 | I42: 2016-09-22 08:27:48
A43: 117911 | C43: Osoba 13 | D43: Společnost 26 | E43: Pití | F43: 2016-09-22T20:10:56 | G43: 1.15740695e-05 | H43: 2016-09-22T20:10:57 | I43: 2016-09-22 08:27:48
A44: 117920 | C44: Osoba 13 | D44: Společnost 27 | E44: Učení | F44: 2016-09-22T20:21:04 | G44: 1.15740695e-05 | H44: 2016-09-22T20:21:05 | I44: 2016-09-22 08:27:48
A45: 119049 | C45: Osoba 14 | D45: Společnost 28 | E45: Učení | F45: 2016-09-24T17:59:31 | G45: 1.15740695e-05 | H45: 2016-09-24T17:59:32 | I45: 2016-09-24 12:07:31
A46: 119849 | C46: Osoba 14 | D46: Společnost 28 | E46: Učení | F46: 2016-09-27T17:59:31 | G46: 1.15740695e-05 | H46: 2016-09-27T17:59:32 | I46: 2016-09-27 04:58:58
A47: 142 | C47: Osoba 15 | D47: Společnost 29 | E47: Pocec | F47: 2016-07-08T13:51:06 | G47: 1.157407678e-05 | H47: 2016-07-08T13:51:07 | I47: 2016-07-08 14:56:11
A48: 226 | C48: Osoba 16 | D48: Společnost 30 | E48: Jídlo | F48: 2016-07-11T09:11:30 | G48: 1.157407678e-05 | H48: 2016-07-11T09:11:31 | I48: 2016-07-11 12:42:17
A49: 230 | C49: Osoba 2 | D49: Společnost 2 | E49: Pití | F49: 2016-07-11T13:14:16 | G49: 1.157407678e-05 | H49: 2016-07-11T13:14:17 | I49: 2016-07-11 12:42:17
A50: 232 | C50: Osoba 2 | D50: Společnost 2 | E50: Pocec | F50: 2016-07-11T13:15:53 | G50: 1.157407678e-05 | H50: 2016-07-11T13:15:54 | I50: 2016-07-11 12:42:17
A51: 254 | C51: Osoba 11 | D51: Společnost 31 | E51: Kreslení | F51: 2016-07-12T19:25:12 | G51: 1.157407678e-05 | H51: 2016-07-12T19:25:13 | I51: 2016-07-12 06:24:04
A52: 255 | C52: Osoba 11 | D52: Společnost 31 | E52: Procházka | F52: 2016-07-12T19:26:01 | G52: 1.157407678e-05 | H52: 2016-07-12T19:26:02 | I52: 2016-07-12 06:24:04
A53: 257 | C53: Osoba 3 | D53: Společnost 11 | E53: Jídlo | F53: 2016-07-12T01:02:37 | G53: 1.157407678e-05 | H53: 2016-07-12T01:02:38 | I53: 2016-07-12 06:24:04
A54: 262 | C54: Osoba 5 | D54: Společnost 21 | E54: Procházka | F54: 2016-07-12T19:37:16 | G54: 1.157407678e-05 | H54: 2016-07-12T19:37:17 | I54: 2016-07-12 06:24:04
A55: 265 | C55: Osoba 17 | D55: Společnost 2 | E55: Odpočinek | F55: 2016-07-14T14:49:04 | G55: 1.157407678e-05 | H55: 2016-07-14T14:49:05 | I55: 2016-07-14 15:11:15
A56: 267 | C56: Osoba 18 | D56: Společnost 6 | E56: Jídlo | F56: 2016-07-14T14:51:42 | G56: 1.157407678e-05 | H56: 2016-07-14T14:51:43 | I56: 2016-07-14 15:11:15
A57: 272 | C57: Osoba 3 | D57: Společnost 32 | E57: Kreslení | F57: 2016-07-14T13:07:16 | G57: 1.157407678e-05 | H57: 2016-07-14T13:07:17 | I57: 2016-07-14 15:11:15
A58: 273 | C58: Osoba 3 | D58: Společnost 33 | E58: Učení | F58: 2016-07-14T13:07:27 | G58: 1.157407678e-05 | H58: 2016-07-14T13:07:28 | I58: 2016-07-14 15:11:15
A59: 275 | C59: Osoba 3 | D59: Společnost 34 | E59: Odpočinek | F59: 2016-07-14T13:08:42 | G59: 1.157407678e-05 | H59: 2016-07-14T13:08:43 | I59: 2016-07-14 15:11:15
A60: 282 | C60: Osoba 3 | D60: Společnost 35 | E60: Odpočinek | F60: 2016-07-14T14:48:10 | G60: 1.157407678e-05 | H60: 2016-07-14T14:48:11 | I60: 2016-07-14 15:11:15
A61: 283 | C61: Osoba 3 | D61: Společnost 34 | E61: Odpočinek | F61: 2016-07-14T14:48:26 | G61: 1.157407678e-05 | H61: 2016-07-14T14:48:27 | I61: 2016-07-14 15:11:15
A62: 328 | C62: Osoba 4 | D62: Společnost 7 | E62: Jídlo | F62: 2016-07-18T02:44:50 | G62: 1.157407678e-05 | H62: 2016-07-18T02:44:51 | I62: 2016-07-18 12:18:09
A63: 341 | C63: Osoba 5 | D63: Společnost 8 | E63: Jídlo | F63: 2016-07-18T02:41:24 | G63: 1.157407678e-05 | H63: 2016-07-18T02:41:25 | I63: 2016-07-18 12:18:09
A64: 373 | C64: Osoba 18 | D64: Společnost 7 | E64: Jídlo | F64: 2016-07-18T13:14:11 | G64: 1.157407678e-05 | H64: 2016-07-18T13:14:12 | I64: 2016-07-18 13:20:48
A65: 625 | C65: Osoba 12 | D65: Společnost 17 | E65: Kreslení | F65: 2016-07-20T05:09:07 | G65: 1.157407678e-05 | H65: 2016-07-20T05:09:08 | I65: 2016-07-20 09:36:06
A66: 1000 | C66: Osoba 18 | D66: Společnost 36 | E66: Odpočinek | F66: 2016-08-01T13:38:25 | G66: =H66-F66 -> 1.157407678e-05 | H66: 2016-08-01T13:38:26 | I66: 2016-08-01 14:20:53
A67: 1004 | C67: Osoba 7 | D67: Společnost 11 | E67: Učení | F67: 2016-08-01T23:51:55 | G67: 1.157407678e-05 | H67: 2016-08-01T23:51:56 | I67: 2016-08-01 14:20:53
A68: 1006 | C68: Osoba 7 | D68: Společnost 11 | E68: Odpočinek | F68: 2016-08-01T23:52:54 | G68: 1.157407678e-05 | H68: 2016-08-01T23:52:55 | I68: 2016-08-01 14:20:53
A69: 2135 | C69: Osoba 3 | D69: Společnost 37 | E69: Kreslení | F69: 2016-08-16T10:41:03 | G69: 1.157407678e-05 | H69: 2016-08-16T10:41:04 | I69: 2016-08-16 06:28:39
A70: 2526 | C70: Osoba 10 | D70: Společnost 38 | E70: Pocec | F70: 2016-08-16T06:55:31 | G70: 1.157407678e-05 | H70: 2016-08-16T06:55:32 | I70: 2016-08-16 06:55:34
A71: 2615 | C71: Osoba 19 | D71: Společnost 1 | E71: Učení | F71: 2016-08-16T09:20:39 | G71: 1.157407678e-05 | H71: 2016-08-16T09:20:40 | I71: 2016-08-16 07:13:47
A72: 6056 | C72: Osoba 10 | D72: Společnost 32 | E72: Lození | F72: 2016-08-16T10:36:24 | G72: 1.157407678e-05 | H72: 2016-08-16T10:36:25 | I72: 2016-08-16 12:13:22
A73: 14419 | C73: Osoba 11 | D73: Společnost 39 | E73: Jídlo | F73: 2016-08-19T07:01:24 | G73: 1.157407678e-05 | H73: 2016-08-19T07:01:25 | I73: 2016-08-19 08:59:52
A74: 14459 | C74: Osoba 11 | D74: Společnost 11 | E74: Procházka | F74: 2016-08-19T12:08:47 | G74: 1.157407678e-05 | H74: 2016-08-19T12:08:48 | I74: 2016-08-19 08:59:52
A75: 14483 | C75: Osoba 7 | D75: Společnost 6 | E75: Učení | F75: 2016-08-19T11:11:54 | G75: 1.157407678e-05 | H75: 2016-08-19T11:11:55 | I75: 2016-08-19 08:59:52
A76: 34898 | C76: Osoba 10 | D76: Společnost 40 | E76: Procházka | F76: 2016-08-20T18:20:40 | G76: 1.157407678e-05 | H76: 2016-08-20T18:20:41 | I76: 2016-08-20 19:19:59
A77: 42071 | C77: Osoba 6 | D77: Společnost 41 | E77: Lození | F77: 2016-08-21T08:24:38 | G77: 1.157407678e-05 | H77: 2016-08-21T08:24:39 | I77: 2016-08-21 18:23:20
A78: 42327 | C78: Osoba 12 | D78: Společnost 42 | E78: Kreslení | F78: 2016-08-22T16:12:55 | G78: 1.157407678e-05 | H78: 2016-08-22T16:12:56 | I78: 2016-08-22 14:20:45
A79: 65296 | C79: Osoba 11 | D79: Společnost 39 | E79: Jídlo | F79: 2016-09-02T07:01:24 | G79: 1.157407678e-05 | H79: 2016-09-02T07:01:25 | I79: 2016-09-02 02:41:33
A80: 65336 | C80: Osoba 11 | D80: Společnost 11 | E80: Procházka | F80: 2016-09-02T12:08:47 | G80: 1.157407678e-05 | H80: 2016-09-02T12:08:48 | I80: 2016-09-02 02:41:33
A81: 65384 | C81: Osoba 7 | D81: Společnost 6 | E81: Učení | F81: 2016-09-02T11:11:54 | G81: 1.157407678e-05 | H81: 2016-09-02T11:11:55 | I81: 2016-09-02 02:41:33
A82: 115109 | C82: Osoba 13 | D82: Společnost 43 | E82: Pocec | F82: 2016-09-18T19:05:15 | G82: 1.157407678e-05 | H82: 2016-09-18T19:05:16 | I82: 2016-09-18 04:34:34
A83: 115112 | C83: Osoba 13 | D83: Společnost 44 | E83: Pití | F83: 2016-09-18T19:15:18 | G83: 1.157407678e-05 | H83: 2016-09-18T19:15:19 | I83: 2016-09-18 04:34:35
A84: 115114 | C84: Osoba 13 | D84: Společnost 44 | E84: Pití | F84: 2016-09-18T19:20:27 | G84: 1.157407678e-05 | H84: 2016-09-18T19:20:28 | I84: 2016-09-18 04:34:35
A85: 115118 | C85: Osoba 13 | D85: Společnost 22 | E85: Kreslení | F85: 2016-09-18T19:27:20 | G85: 1.157407678e-05 | H85: 2016-09-18T19:27:21 | I85: 2016-09-18 04:34:35
A86: 115121 | C86: Osoba 13 | D86: Společnost 22 | E86: Pití | F86: 2016-09-18T19:32:44 | G86: 1.157407678e-05 | H86: 2016-09-18T19:32:45 | I86: 2016-09-18 04:34:35
A87: 115127 | C87: Osoba 13 | D87: Společnost 18 | E87: Jídlo | F87: 2016-09-18T19:44:36 | G87: 1.157407678e-05 | H87: 2016-09-18T19:44:37 | I87: 2016-09-18 04:34:35
A88: 115131 | C88: Osoba 13 | D88: Společnost 21 | E88: Kreslení | F88: 2016-09-18T19:56:32 | G88: 1.157407678e-05 | H88: 2016-09-18T19:56:33 | I88: 2016-09-18 04:34:35
A89: 115132 | C89: Osoba 13 | D89: Společnost 21 | E89: Jídlo | F89: 2016-09-18T19:58:06 | G89: 1.157407678e-05 | H89: 2016-09-18T19:58:07 | I89: 2016-09-18 04:34:35
A90: 115133 | C90: Osoba 13 | D90: Společnost 21 | E90: Učení | F90: 2016-09-18T19:58:33 | G90: 1.157407678e-05 | H90: 2016-09-18T19:58:34 | I90: 2016-09-18 04:34:35
A91: 115137 | C91: Osoba 13 | D91: Společnost 25 | E91: Jídlo | F91: 2016-09-18T20:06:47 | G91: 1.157407678e-05 | H91: 2016-09-18T20:06:48 | I91: 2016-09-18 04:34:35
A92: 115143 | C92: Osoba 13 | D92: Společnost 26 | E92: Učení | F92: 2016-09-18T20:15:50 | G92: 1.157407678e-05 | H92: 2016-09-18T20:15:51 | I92: 2016-09-18 04:34:35
A93: 115144 | C93: Osoba 13 | D93: Společnost 27 | E93: Pití | F93: 2016-09-18T20:18:10 | G93: 1.157407678e-05 | H93: 2016-09-18T20:18:11 | I93: 2016-09-18 04:34:35
A94: 115145 | C94: Osoba 13 | D94: Společnost 27 | E94: Jídlo | F94: 2016-09-18T20:19:25 | G94: 1.157407678e-05 | H94: 2016-09-18T20:19:26 | I94: 2016-09-18 04:34:35
A95: 115146 | C95: Osoba 13 | D95: Společnost 27 | E95: Jídlo | F95: 2016-09-18T20:20:03 | G95: 1.157407678e-05 | H95: 2016-09-18T20:20:04 | I95: 2016-09-18 04:34:35
A96: 117662 | C96: Osoba 13 | D96: Společnost 6 | E96: Pocec | F96: 2016-09-22T17:58:45 | G96: 1.157407678e-05 | H96: 2016-09-22T17:58:46 | I96: 2016-09-22 06:37:36
A97: 117668 | C97: Osoba 13 | D97: Společnost 45 | E97: Čtení | F97: 2016-09-22T13:32:38 | G97: 1.157407678e-05 | H97: 2016-09-22T13:32:39 | I97: 2016-09-22 06:37:36
A98: 117669 | C98: Osoba 13 | D98: Společnost 45 | E98: Procházka | F98: 2016-09-22T13:33:00 | G98: 1.157407678e-05 | H98: 2016-09-22T13:33:01 | I98: 2016-09-22 06:37:36
A99: 117672 | C99: Osoba 20 | D99: Společnost 46 | E99: Pití | F99: 2016-09-22T16:07:35 | G99: 1.157407678e-05 | H99: 2016-09-22T16:07:36 | I99: 2016-09-22 06:37:36
A100: 117678 | C100: Osoba 12 | D100: Společnost 42 | E100: Kreslení | F100: 2016-09-22T16:12:55 | G100: 1.157407678e-05 | H100: 2016-09-22T16:12:56 | I100: 2016-09-22 06:37:37
A101: 117881 | C101: Osoba 13 | D101: Společnost 43 | E101: Pocec | F101: 2016-09-22T19:05:15 | G101: 1.157407678e-05 | H101: 2016-09-22T19:05:16 | I101: 2016-09-22 08:27:48
A102: 117884 | C102: Osoba 13 | D102: Společnost 44 | E102: Pití | F102: 2016-09-22T19:15:18 | G102: 1.157407678e-05 | H102: 2016-09-22T19:15:19 | I102: 2016-09-22 08:27:48
A103: 117886 | C103: Osoba 13 | D103: Společnost 44 | E103: Pití | F103: 2016-09-22T19:20:27 | G103: 1.157407678e-05 | H103: 2016-09-22T19:20:28 | I103: 2016-09-22 08:27:48
A104: 117890 | C104: Osoba 13 | D104: Společnost 22 | E104: Kreslení | F104: 2016-09-22T19:27:20 | G104: 1.157407678e-05 | H104: 2016-09-22T19:27:21 | I104: 2016-09-22 08:27:48
A105: 117893 | C105: Osoba 13 | D105: Společnost 22 | E105: Pití | F105: 2016-09-22T19:32:44 | G105: 1.157407678e-05 | H105: 2016-09-22T19:32:45 | I105: 2016-09-22 08:27:48
A106: 117899 | C106: Osoba 13 | D106: Společnost 18 | E106: Jídlo | F106: 2016-09-22T19:44:36 | G106: 1.157407678e-05 | H106: 2016-09-22T19:44:37 | I106: 2016-09-22 08:27:48
A107: 117903 | C107: Osoba 13 | D107: Společnost 21 | E107: Kreslení | F107: 2016-09-22T19:56:32 | G107: 1.157407678e-05 | H107: 2016-09-22T19:56:33 | I107: 2016-09-22 08:27:48
A108: 117904 | C108: Osoba 13 | D108: Společnost 21 | E108: Jídlo | F108: 2016-09-22T19:58:06 | G108: 1.157407678e-05 | H108: 2016-09-22T19:58:07 | I108: 2016-09-22 08:27:48
A109: 117905 | C109: Osoba 13 | D109: Společnost 21 | E109: Učení | F109: 2016-09-22T19:58:33 | G109: 1.157407678e-05 | H109: 2016-09-22T19:58:34 | I109: 2016-09-22 08:27:48
A110: 117909 | C110: Osoba 13 | D110: Společnost 25 | E110: Jídlo | F110: 2016-09-22T20:06:47 | G110: 1.157407678e-05 | H110: 2016-09-22T20:06:48 | I110: 2016-09-22 08:27:48
A111: 117915 | C111: Osoba 13 | D111: Společnost 26 | E111: Učení | F111: 2016-09-22T20:15:50 | G111: 1.157407678e-05 | H111: 2016-09-22T20:15:51 | I111: 2016-09-22 08:27:48
A112: 117916 | C112: Osoba 13 | D112: Společnost 27 | E112: Pití | F112: 2016-09-22T20:18:10 | G112: 1.157407678e-05 | H112: 2016-09-22T20:18:11 | I112: 2016-09-22 08:27:48
A113: 117917 | C113: Osoba 13 | D113: Společnost 27 | E113: Jídlo | F113: 2016-09-22T20:19:25 | G113: 1.157407678e-05 | H113: 2016-09-22T20:19:26 | I113: 2016-09-22 08:27:48
A114: 117918 | C114: Osoba 13 | D114: Společnost 27 | E114: Jídlo | F114: 2016-09-22T20:20:03 | G114: 1.157407678e-05 | H114: 2016-09-22T20:20:04 | I114: 2016-09-22 08:27:48
A115: 119054 | C115: Osoba 13 | D115: Společnost 6 | E115: Pocec | F115: 2016-09-24T17:58:45 | G115: 1.157407678e-05 | H115: 2016-09-24T17:58:46 | I115: 2016-09-24 12:07:31
A116: 119060 | C116: Osoba 13 | D116: Společnost 45 | E116: Čtení | F116: 2016-09-24T13:32:38 | G116: 1.157407678e-05 | H116: 2016-09-24T13:32:39 | I116: 2016-09-24 12:07:31
A117: 119061 | C117: Osoba 13 | D117: Společnost 45 | E117: Procházka | F117: 2016-09-24T13:33:00 | G117: 1.157407678e-05 | H117: 2016-09-24T13:33:01 | I117: 2016-09-24 12:07:31
A118: 119064 | C118: Osoba 20 | D118: Společnost 46 | E118: Pití | F118: 2016-09-24T16:07:35 | G118: 1.157407678e-05 | H118: 2016-09-24T16:07:36 | I118: 2016-09-24 12:07:31
A119: 119070 | C119: Osoba 12 | D119: Společnost 42 | E119: Kreslení | F119: 2016-09-24T16:12:55 | G119: 1.157407678e-05 | H119: 2016-09-24T16:12:56 | I119: 2016-09-24 12:07:31
A120: 119854 | C120: Osoba 13 | D120: Společnost 6 | E120: Pocec | F120: 2016-09-27T17:58:45 | G120: 1.157407678e-05 | H120: 2016-09-27T17:58:46 | I120: 2016-09-27 04:58:58
A121: 119860 | C121: Osoba 13 | D121: Společnost 45 | E121: Čtení | F121: 2016-09-27T13:32:38 | G121: 1.157407678e-05 | H121: 2016-09-27T13:32:39 | I121: 2016-09-27 04:58:58
A122: 119861 | C122: Osoba 13 | D122: Společnost 45 | E122: Procházka | F122: 2016-09-27T13:33:00 | G122: 1.157407678e-05 | H122: 2016-09-27T13:33:01 | I122: 2016-09-27 04:58:58
A123: 119864 | C123: Osoba 20 | D123: Společnost 46 | E123: Pití | F123: 2016-09-27T16:07:35 | G123: 1.157407678e-05 | H123: 2016-09-27T16:07:36 | I123: 2016-09-27 04:58:59
A124: 119870 | C124: Osoba 12 | D124: Společnost 42 | E124: Kreslení | F124: 2016-09-27T16:12:55 | G124: 1.157407678e-05 | H124: 2016-09-27T16:12:56 | I124: 2016-09-27 04:58:59
A125: 76 | C125: Osoba 21 | D125: Společnost 17 | E125: Pocec | F125: 2016-06-23T17:43:38 | G125: 2.314814628e-05 | H125: 2016-06-23T17:43:40 | I125: 2016-06-23 17:43:38
A126: 81 | C126: Osoba 22 | D126: Společnost 2 | E126: Odpočinek | F126: 2016-06-24T22:23:04 | G126: 2.314814628e-05 | H126: 2016-06-24T22:23:06 | I126: 2016-06-24 22:23:05
A127: 91 | C127: Osoba 14 | D127: Společnost 17 | E127: Odpočinek | F127: 2016-07-07T11:18:41 | G127: 2.314814628e-05 | H127: 2016-07-07T11:18:43 | I127: 2016-07-07 11:18:42
A128: 212 | C128: Osoba 1 | D128: Společnost 10 | E128: Pití | F128: 2016-07-11T16:02:32 | G128: 2.314814628e-05 | H128: 2016-07-11T16:02:34 | I128: 2016-07-11 12:42:17
A129: 217 | C129: Osoba 11 | D129: Společnost 34 | E129: Lození | F129: 2016-07-11T16:17:31 | G129: 2.314814628e-05 | H129: 2016-07-11T16:17:33 | I129: 2016-07-11 12:42:17
A130: 219 | C130: Osoba 23 | D130: Společnost 47 | E130: Kreslení | F130: 2016-07-11T16:21:33 | G130: =H130-F130 -> 2.314814628e-05 | H130: 2016-07-11T16:21:35 | I130: 2016-07-11 12:42:17
A131: 220 | C131: Osoba 23 | D131: Společnost 48 | E131: Učení | F131: 2016-07-11T16:21:53 | G131: 2.314814628e-05 | H131: 2016-07-11T16:21:55 | I131: 2016-07-11 12:42:17
A132: 234 | C132: Osoba 10 | D132: Společnost 11 | E132: Jídlo | F132: 2016-07-11T16:17:21 | G132: 2.314814628e-05 | H132: 2016-07-11T16:17:23 | I132: 2016-07-11 12:42:17
A133: 235 | C133: Osoba 10 | D133: Společnost 11 | E133: Procházka | F133: 2016-07-11T16:17:32 | G133: 2.314814628e-05 | H133: 2016-07-11T16:17:34 | I133: 2016-07-11 12:42:17
A134: 239 | C134: Osoba 24 | D134: Společnost 8 | E134: Odpočinek | F134: 2016-07-11T01:06:59 | G134: 2.314814628e-05 | H134: 2016-07-11T01:07:01 | I134: 2016-07-11 12:42:17
A135: 252 | C135: Osoba 11 | D135: Společnost 11 | E135: Procházka | F135: 2016-07-12T19:23:27 | G135: 2.314814628e-05 | H135: 2016-07-12T19:23:29 | I135: 2016-07-12 06:24:04
A136: 253 | C136: Osoba 11 | D136: Společnost 49 | E136: Pocec | F136: 2016-07-12T19:24:16 | G136: 2.314814628e-05 | H136: 2016-07-12T19:24:18 | I136: 2016-07-12 06:24:04
A137: 286 | C137: Osoba 18 | D137: Společnost 47 | E137: Procházka | F137: 2016-07-14T15:19:38 | G137: 2.314814628e-05 | H137: 2016-07-14T15:19:40 | I137: 2016-07-14 15:19:42
A138: 331 | C138: Osoba 25 | D138: Společnost 7 | E138: Odpočinek | F138: 2016-07-18T02:44:05 | G138: 2.314814628e-05 | H138: 2016-07-18T02:44:07 | I138: 2016-07-18 12:18:09
A139: 332 | C139: Osoba 25 | D139: Společnost 7 | E139: Jídlo | F139: 2016-07-18T02:44:16 | G139: 2.314814628e-05 | H139: 2016-07-18T02:44:18 | I139: 2016-07-18 12:18:09
A140: 338 | C140: Osoba 5 | D140: Společnost 8 | E140: Kreslení | F140: 2016-07-18T02:40:30 | G140: 2.314814628e-05 | H140: 2016-07-18T02:40:32 | I140: 2016-07-18 12:18:09
A141: 339 | C141: Osoba 5 | D141: Společnost 8 | E141: Pití | F141: 2016-07-18T02:40:38 | G141: 2.314814628e-05 | H141: 2016-07-18T02:40:40 | I141: 2016-07-18 12:18:09
A142: 342 | C142: Osoba 5 | D142: Společnost 9 | E142: Odpočinek | F142: 2016-07-18T02:41:36 | G142: 2.314814628e-05 | H142: 2016-07-18T02:41:38 | I142: 2016-07-18 12:18:09
A143: 343 | C143: Osoba 5 | D143: Společnost 9 | E143: Kreslení | F143: 2016-07-18T02:41:53 | G143: 2.314814628e-05 | H143: 2016-07-18T02:41:55 | I143: 2016-07-18 12:18:09
A144: 345 | C144: Osoba 5 | D144: Společnost 9 | E144: Pocec | F144: 2016-07-18T02:42:32 | G144: 2.314814628e-05 | H144: 2016-07-18T02:42:34 | I144: 2016-07-18 12:18:09
A145: 621 | C145: Osoba 5 | D145: Společnost 50 | E145: Odpočinek | F145: 2016-07-20T01:02:29 | G145: 2.314814628e-05 | H145: 2016-07-20T01:02:31 | I145: 2016-07-20 09:36:06
A146: 622 | C146: Osoba 5 | D146: Společnost 50 | E146: Pocec | F146: 2016-07-20T01:02:43 | G146: 2.314814628e-05 | H146: 2016-07-20T01:02:45 | I146: 2016-07-20 09:36:06
A147: 998 | C147: Osoba 18 | D147: Společnost 39 | E147: Pocec | F147: 2016-08-01T13:37:56 | G147: 2.314814628e-05 | H147: 2016-08-01T13:37:58 | I147: 2016-08-01 14:20:53
A148: 1569 | C148: Osoba 26 | D148: Společnost 51 | E148: Odpočinek | F148: 2016-08-02T14:43:44 | G148: 2.314814628e-05 | H148: 2016-08-02T14:43:46 | I148: 2016-08-02 09:42:35
A149: 1707 | C149: Osoba 26 | D149: Společnost 51 | E149: Odpočinek | F149: 2016-08-03T14:43:44 | G149: 2.314814628e-05 | H149: 2016-08-03T14:43:46 | I149: 2016-08-03 20:16:55
A150: 1722 | C150: Osoba 26 | D150: Společnost 51 | E150: Odpočinek | F150: 2016-08-04T14:43:44 | G150: 2.314814628e-05 | H150: 2016-08-04T14:43:46 | I150: 2016-08-04 12:57:32
A151: 1738 | C151: Osoba 26 | D151: Společnost 51 | E151: Odpočinek | F151: 2016-08-08T14:43:44 | G151: 2.314814628e-05 | H151: 2016-08-08T14:43:46 | I151: 2016-08-08 10:00:20
A152: 1743 | C152: Osoba 8 | D152: Společnost 12 | E152: Kreslení | F152: 2016-08-08T14:12:06 | G152: 2.314814628e-05 | H152: 2016-08-08T14:12:08 | I152: 2016-08-08 14:15:05
A153: 1747 | C153: Osoba 8 | D153: Společnost 12 | E153: Odpočinek | F153: 2016-08-08T14:13:15 | G153: 2.314814628e-05 | H153: 2016-08-08T14:13:17 | I153: 2016-08-08 14:15:05
A154: 1749 | C154: Osoba 8 | D154: Společnost 12 | E154: Odpočinek | F154: 2016-08-08T14:13:31 | G154: 2.314814628e-05 | H154: 2016-08-08T14:13:33 | I154: 2016-08-08 14:15:05
A155: 1808 | C155: Osoba 9 | D155: Společnost 38 | E155: Kreslení | F155: 2016-08-11T06:36:46 | G155: 2.314814628e-05 | H155: 2016-08-11T06:36:48 | I155: 2016-08-11 06:36:51
A156: 2142 | C156: Osoba 10 | D156: Společnost 52 | E156: Pocec | F156: 2016-08-16T06:29:02 | G156: 2.314814628e-05 | H156: 2016-08-16T06:29:04 | I156: 2016-08-16 06:29:07
A157: 14522 | C157: Osoba 26 | D157: Společnost 51 | E157: Odpočinek | F157: 2016-08-19T14:43:44 | G157: 2.314814628e-05 | H157: 2016-08-19T14:43:46 | I157: 2016-08-19 08:59:53
A158: 115063 | C158: Osoba 21 | D158: Společnost 53 | E158: Procházka | F158: 2016-09-18T09:09:34 | G158: 2.314814628e-05 | H158: 2016-09-18T09:09:36 | I158: 2016-09-18 04:34:34
A159: 115089 | C159: Osoba 13 | D159: Společnost 45 | E159: Odpočinek | F159: 2016-09-18T18:04:02 | G159: 2.314814628e-05 | H159: 2016-09-18T18:04:04 | I159: 2016-09-18 04:34:34
A160: 115092 | C160: Osoba 13 | D160: Společnost 24 | E160: Odpočinek | F160: 2016-09-18T18:06:54 | G160: 2.314814628e-05 | H160: 2016-09-18T18:06:56 | I160: 2016-09-18 04:34:34
A161: 115106 | C161: Osoba 13 | D161: Společnost 54 | E161: Odpočinek | F161: 2016-09-18T18:32:48 | G161: 2.314814628e-05 | H161: 2016-09-18T18:32:50 | I161: 2016-09-18 04:34:34
A162: 115107 | C162: Osoba 13 | D162: Společnost 43 | E162: Odpočinek | F162: 2016-09-18T18:34:07 | G162: 2.314814628e-05 | H162: 2016-09-18T18:34:09 | I162: 2016-09-18 04:34:34
A163: 115113 | C163: Osoba 13 | D163: Společnost 44 | E163: Jídlo | F163: 2016-09-18T19:18:42 | G163: 2.314814628e-05 | H163: 2016-09-18T19:18:44 | I163: 2016-09-18 04:34:35
A164: 115117 | C164: Osoba 13 | D164: Společnost 45 | E164: Učení | F164: 2016-09-18T19:25:00 | G164: 2.314814628e-05 | H164: 2016-09-18T19:25:02 | I164: 2016-09-18 04:34:35
A165: 115120 | C165: Osoba 13 | D165: Společnost 22 | E165: Jídlo | F165: 2016-09-18T19:30:41 | G165: 2.314814628e-05 | H165: 2016-09-18T19:30:43 | I165: 2016-09-18 04:34:35
A166: 115124 | C166: Osoba 13 | D166: Společnost 55 | E166: Odpočinek | F166: 2016-09-18T19:35:37 | G166: 2.314814628e-05 | H166: 2016-09-18T19:35:39 | I166: 2016-09-18 04:34:35
A167: 115125 | C167: Osoba 13 | D167: Společnost 55 | E167: Jídlo | F167: 2016-09-18T19:40:32 | G167: 2.314814628e-05 | H167: 2016-09-18T19:40:34 | I167: 2016-09-18 04:34:35
A168: 115130 | C168: Osoba 13 | D168: Společnost 56 | E168: Jídlo | F168: 2016-09-18T19:53:43 | G168: 2.314814628e-05 | H168: 2016-09-18T19:53:45 | I168: 2016-09-18 04:34:35
A169: 115149 | C169: Osoba 13 | D169: Společnost 20 | E169: Jídlo | F169: 2016-09-18T20:24:25 | G169: 2.314814628e-05 | H169: 2016-09-18T20:24:27 | I169: 2016-09-18 04:34:35
A170: 117661 | C170: Osoba 13 | D170: Společnost 6 | E170: Kreslení | F170: 2016-09-22T17:58:27 | G170: 2.314814628e-05 | H170: 2016-09-22T17:58:29 | I170: 2016-09-22 06:37:36
A171: 117835 | C171: Osoba 21 | D171: Společnost 53 | E171: Procházka | F171: 2016-09-22T09:09:34 | G171: 2.314814628e-05 | H171: 2016-09-22T09:09:36 | I171: 2016-09-22 08:27:48
A172: 117861 | C172: Osoba 13 | D172: Společnost 45 | E172: Odpočinek | F172: 2016-09-22T18:04:02 | G172: 2.314814628e-05 | H172: 2016-09-22T18:04:04 | I172: 2016-09-22 08:27:48
A173: 117864 | C173: Osoba 13 | D173: Společnost 24 | E173: Odpočinek | F173: 2016-09-22T18:06:54 | G173: 2.314814628e-05 | H173: 2016-09-22T18:06:56 | I173: 2016-09-22 08:27:48
A174: 117878 | C174: Osoba 13 | D174: Společnost 54 | E174: Odpočinek | F174: 2016-09-22T18:32:48 | G174: 2.314814628e-05 | H174: 2016-09-22T18:32:50 | I174: 2016-09-22 08:27:48
A175: 117879 | C175: Osoba 13 | D175: Společnost 43 | E175: Odpočinek | F175: 2016-09-22T18:34:07 | G175: 2.314814628e-05 | H175: 2016-09-22T18:34:09 | I175: 2016-09-22 08:27:48
A176: 117885 | C176: Osoba 13 | D176: Společnost 44 | E176: Jídlo | F176: 2016-09-22T19:18:42 | G176: 2.314814628e-05 | H176: 2016-09-22T19:18:44 | I176: 2016-09-22 08:27:48
A177: 117889 | C177: Osoba 13 | D177: Společnost 45 | E177: Učení | F177: 2016-09-22T19:25:00 | G177: 2.314814628e-05 | H177: 2016-09-22T19:25:02 | I177: 2016-09-22 08:27:48
A178: 117892 | C178: Osoba 13 | D178: Společnost 22 | E178: Jídlo | F178: 2016-09-22T19:30:41 | G178: 2.314814628e-05 | H178: 2016-09-22T19:30:43 | I178: 2016-09-22 08:27:48
A179: 117896 | C179: Osoba 13 | D179: Společnost 55 | E179: Odpočinek | F179: 2016-09-22T19:35:37 | G179: 2.314814628e-05 | H179: 2016-09-22T19:35:39 | I179: 2016-09-22 08:27:48
A180: 117897 | C180: Osoba 13 | D180: Společnost 55 | E180: Jídlo | F180: 2016-09-22T19:40:32 | G180: 2.314814628e-05 | H180: 2016-09-22T19:40:34 | I180: 2016-09-22 08:27:48
A181: 117902 | C181: Osoba 13 | D181: Společnost 56 | E181: Jídlo | F181: 2016-09-22T19:53:43 | G181: 2.314814628e-05 | H181: 2016-09-22T19:53:45 | I181: 2016-09-22 08:27:48
A182: 117921 | C182: Osoba 13 | D182: Společnost 20 | E182: Jídlo | F182: 2016-09-22T20:24:25 | G182: 2.314814628e-05 | H182: 2016-09-22T20:24:27 | I182: 2016-09-22 08:27:48
A183: 119053 | C183: Osoba 13 | D183: Společnost 6 | E183: Kreslení | F183: 2016-09-24T17:58:27 | G183: 2.314814628e-05 | H183: 2016-09-24T17:58:29 | I183: 2016-09-24 12:07:31
A184: 119853 | C184: Osoba 13 | D184: Společnost 6 | E184: Kreslení | F184: 2016-09-27T17:58:27 | G184: 2.314814628e-05 | H184: 2016-09-27T17:58:29 | I184: 2016-09-27 04:58:58
A185: 667 | C185: Osoba 6 | D185: Společnost 28 | E185: Odpočinek | F185: 2016-08-01T16:17:58 | G185: 2.314815356e-05 | H185: 2016-08-01T16:18:00 | I185: 2016-08-01 07:12:35
A186: 14406 | C186: Osoba 11 | D186: Společnost 57 | E186: Kreslení | F186: 2016-08-19T06:24:03 | G186: 2.314815356e-05 | H186: 2016-08-19T06:24:05 | I186: 2016-08-19 08:59:52
A187: 14485 | C187: Osoba 27 | D187: Společnost 6 | E187: Kreslení | F187: 2016-08-19T05:56:08 | G187: 2.314815356e-05 | H187: 2016-08-19T05:56:10 | I187: 2016-08-19 08:59:52
A188: 34964 | C188: Osoba 10 | D188: Společnost 47 | E188: Procházka | F188: 2016-08-21T22:19:11 | G188: 2.314815356e-05 | H188: 2016-08-21T22:19:13 | I188: 2016-08-21 04:14:27
A189: 65283 | C189: Osoba 11 | D189: Společnost 57 | E189: Kreslení | F189: 2016-09-02T06:24:03 | G189: 2.314815356e-05 | H189: 2016-09-02T06:24:05 | I189: 2016-09-02 02:41:33
A190: 115098 | C190: Osoba 13 | D190: Společnost 58 | E190: Odpočinek | F190: 2016-09-18T18:24:30 | G190: 2.314815356e-05 | H190: 2016-09-18T18:24:32 | I190: 2016-09-18 04:34:34
A191: 115101 | C191: Osoba 13 | D191: Společnost 26 | E191: Odpočinek | F191: 2016-09-18T18:27:57 | G191: 2.314815356e-05 | H191: 2016-09-18T18:27:59 | I191: 2016-09-18 04:34:34
A192: 115104 | C192: Osoba 13 | D192: Společnost 59 | E192: Odpočinek | F192: 2016-09-18T18:30:49 | G192: 2.314815356e-05 | H192: 2016-09-18T18:30:51 | I192: 2016-09-18 04:34:34
A193: 115105 | C193: Osoba 13 | D193: Společnost 60 | E193: Odpočinek | F193: 2016-09-18T18:31:40 | G193: 2.314815356e-05 | H193: 2016-09-18T18:31:42 | I193: 2016-09-18 04:34:34
A194: 115135 | C194: Osoba 13 | D194: Společnost 25 | E194: Kreslení | F194: 2016-09-18T20:02:29 | G194: =H194-F194 -> 2.314815356e-05 | H194: 2016-09-18T20:02:31 | I194: 2016-09-18 04:34:35
A195: 115138 | C195: Osoba 13 | D195: Společnost 25 | E195: Pití | F195: 2016-09-18T20:08:02 | G195: 2.314815356e-05 | H195: 2016-09-18T20:08:04 | I195: 2016-09-18 04:34:35
A196: 117671 | C196: Osoba 13 | D196: Společnost 20 | E196: Psaní | F196: 2016-09-22T14:16:44 | G196: 2.314815356e-05 | H196: 2016-09-22T14:16:46 | I196: 2016-09-22 06:37:36
A197: 117870 | C197: Osoba 13 | D197: Společnost 58 | E197: Odpočinek | F197: 2016-09-22T18:24:30 | G197: 2.314815356e-05 | H197: 2016-09-22T18:24:32 | I197: 2016-09-22 08:27:48
A198: 117873 | C198: Osoba 13 | D198: Společnost 26 | E198: Odpočinek | F198: 2016-09-22T18:27:57 | G198: 2.314815356e-05 | H198: 2016-09-22T18:27:59 | I198: 2016-09-22 08:27:48
A199: 117876 | C199: Osoba 13 | D199: Společnost 59 | E199: Odpočinek | F199: 2016-09-22T18:30:49 | G199: 2.314815356e-05 | H199: 2016-09-22T18:30:51 | I199: 2016-09-22 08:27:48
A200: 117877 | C200: Osoba 13 | D200: Společnost 60 | E200: Odpočinek | F200: 2016-09-22T18:31:40 | G200: 2.314815356e-05 | H200: 2016-09-22T18:31:42 | I200: 2016-09-22 08:27:48
... 1678 more rows

Sheet List1
B1: Login | C1: Společnost | D1: Činnost | E1: Od | F1: Do
B2: Osoba 1 | C2: Společnost 2 | E2: 2016-07-07T10:54:00 | F2: 2016-07-07T17:54:01
E3: =">=" & TEXT(E2,"m/d/rr hh:mm") -> >=7/7/16 10:54 | F3: ="<=" & TEXT(F2,"m/d/rr hh:mm") -> <=7/7/16 17:54
J5: Login
J6: HledanyText1 = Range("B2").Value
J7: HledanyText2 = Range("B3").Value
J9: Sheets("Všechny záznamy").Activate
J10: Sheets("Všechny záznamy").Range("A1", Selection.End(xlToRight)).Select
J11: Selection.AutoFilter Field:=3, Criteria1:=Array(HledanyText1, HledanyText2), Operator:=xlFilterValues
B12: Po aplikaci filtru, napopiruj.
J13: Sheets("List1").Select
J14: Range("A1").Select
J16: Spol
B17: Login uživatele | C17: Společnost | D17: Činnost | E17: Od | F17: Délka | G17: Do | J17: HledanyText1 = Range("C2").Value
B18: Osoba 1 | C18: Společnost 1 | D18: Odpočinek | E18: 2016-07-08T13:54:00 | F18: =G18-E18 -> 1.15740695e-05 | G18: 2016-07-08T13:54:01 | J18: HledanyText2 = Range("C3").Value
B19: Osoba 2 | C19: Společnost 2 | D19: Kreslení | E19: 2016-07-11T13:15:30 | F19: 1.15740695e-05 | G19: 2016-07-11T13:15:31
B20: Osoba 3 | C20: Společnost 3 | D20: Jídlo | E20: 2016-07-12T19:35:10 | F20: 1.15740695e-05 | G20: 2016-07-12T19:35:11 | J20: Sheets("Všechny záznamy").Activate
B21: Osoba 3 | C21: Společnost 4 | D21: Kreslení | E21: 2016-07-14T14:28:09 | F21: 1.15740695e-05 | G21: 2016-07-14T14:28:10 | J21: Sheets("Všechny záznamy").Range("A1", Selection.End(xlToRight)).Select
B22: Osoba 3 | C22: Společnost 5 | D22: Pití | E22: 2016-07-14T14:28:30 | F22: 1.15740695e-05 | G22: 2016-07-14T14:28:31 | J22: Selection.AutoFilter Field:=4, Criteria1:=Array(HledanyText1, HledanyText2), Operator:=xlFilterValues
B23: Osoba 3 | C23: Společnost 6 | D23: Procházka | E23: 2016-07-14T14:30:12 | F23: 1.15740695e-05 | G23: 2016-07-14T14:30:13
B24: Osoba 3 | C24: Společnost 4 | D24: Odpočinek | E24: 2016-07-14T14:47:17 | F24: 1.15740695e-05 | G24: 2016-07-14T14:47:18 | J24: Sheets("List1").Select
B25: Osoba 4 | C25: Společnost 7 | D25: Lození | E25: 2016-07-18T02:45:13 | F25: 1.15740695e-05 | G25: 2016-07-18T02:45:14 | J25: Range("A1").Select
B26: Osoba 5 | C26: Společnost 8 | D26: Jídlo | E26: 2016-07-18T02:40:50 | F26: 1.15740695e-05 | G26: 2016-07-18T02:40:51
B27: Osoba 5 | C27: Společnost 9 | D27: Učení | E27: 2016-07-18T02:42:24 | F27: 1.15740695e-05 | G27: 2016-07-18T02:42:25
B28: Osoba 5 | C28: Společnost 10 | D28: Učení | E28: 2016-07-20T18:19:12 | F28: 1.15740695e-05 | G28: 2016-07-20T18:19:13 | J28: činost
B29: Osoba 6 | C29: Společnost 9 | D29: Kreslení | E29: 2016-08-01T17:41:14 | F29: 1.15740695e-05 | G29: 2016-08-01T17:41:15 | J29: HledanyText1 = Range("D2").Value
B30: Osoba 7 | C30: Společnost 11 | D30: Pití | E30: 2016-08-01T23:52:40 | F30: 1.15740695e-05 | G30: 2016-08-01T23:52:41 | J30: HledanyText2 = Range("D3").Value
B31: Osoba 8 | C31: Společnost 12 | D31: Pití | E31: 2016-08-08T14:12:57 | F31: 1.15740695e-05 | G31: 2016-08-08T14:12:58
B32: Osoba 8 | C32: Společnost 12 | D32: Pocec | E32: 2016-08-08T14:13:08 | F32: 1.15740695e-05 | G32: 2016-08-08T14:13:09 | J32: Sheets("Všechny záznamy").Activate
B33: Osoba 8 | C33: Společnost 12 | D33: Kreslení | E33: 2016-08-08T14:13:24 | F33: 1.15740695e-05 | G33: 2016-08-08T14:13:25 | J33: Sheets("Všechny záznamy").Range("A1").Select
B34: Osoba 9 | C34: Společnost 13 | D34: Kreslení | E34: 2016-08-11T06:46:11 | F34: 1.15740695e-05 | G34: 2016-08-11T06:46:12 | J34: Sheets("Všechny záznamy").Range(Selection, Selection.End(xlToRight)).Select
B35: Osoba 10 | C35: Společnost 10 | D35: Kreslení | E35: 2016-08-11T07:11:27 | F35: 1.15740695e-05 | G35: 2016-08-11T07:11:28 | J35: Selection.AutoFilter Field:=5, Criteria1:=Array(HledanyText1, HledanyText2), Operator:=xlFilterValues
B36: Osoba 11 | C36: Společnost 14 | D36: Odpočinek | E36: 2016-08-11T07:14:09 | F36: 1.15740695e-05 | G36: 2016-08-11T07:14:10
B37: Osoba 10 | C37: Společnost 15 | D37: Jídlo | E37: 2016-08-16T06:57:04 | F37: 1.15740695e-05 | G37: 2016-08-16T06:57:05 | J37: Sheets("List1").Select
B38: Osoba 11 | C38: Společnost 16 | D38: Kreslení | E38: 2016-08-19T14:40:47 | F38: 1.15740695e-05 | G38: 2016-08-19T14:40:48 | J38: Range("A1").Select
B39: Osoba 12 | C39: Společnost 17 | D39: Procházka | E39: 2016-08-21T08:40:07 | F39: 1.15740695e-05 | G39: 2016-08-21T08:40:08
B40: Osoba 13 | C40: Společnost 18 | D40: Odpočinek | E40: 2016-09-18T18:19:25 | F40: 1.15740695e-05 | G40: 2016-09-18T18:19:26 | J40: Filtr
B41: Osoba 13 | C41: Společnost 19 | D41: Odpočinek | E41: 2016-09-18T18:25:23 | F41: 1.15740695e-05 | G41: 2016-09-18T18:25:24 | J41: HledanyText1 = Range("E2").Value
B42: Osoba 13 | C42: Společnost 20 | D42: Odpočinek | E42: 2016-09-18T18:28:31 | F42: 1.15740695e-05 | G42: 2016-09-18T18:28:32 | J42: HledanyText2 = Range("F2").Value
B43: Osoba 13 | C43: Společnost 21 | D43: Pocec | E43: 2016-09-18T19:03:56 | F43: 1.15740695e-05 | G43: 2016-09-18T19:03:57
B44: Osoba 13 | C44: Společnost 22 | D44: Učení | E44: 2016-09-18T19:28:48 | F44: 1.15740695e-05 | G44: 2016-09-18T19:28:49 | J44: Sheets("Všechny záznamy").Activate
B45: Osoba 13 | C45: Společnost 23 | D45: Jídlo | E45: 2016-09-18T19:42:37 | F45: 1.15740695e-05 | G45: 2016-09-18T19:42:38 | J45: Sheets("Všechny záznamy").Range("A1").Select
B46: Osoba 13 | C46: Společnost 24 | D46: Odpočinek | E46: 2016-09-18T19:46:20 | F46: 1.15740695e-05 | G46: 2016-09-18T19:46:21 | J46: Sheets("Všechny záznamy").Range(Selection, Selection.End(xlToRight)).Select
B47: Osoba 13 | C47: Společnost 25 | D47: Pití | E47: 2016-09-18T20:04:10 | F47: 1.15740695e-05 | G47: 2016-09-18T20:04:11 | J47: Selection.AutoFilter Field:=6, Criteria1:= _
B48: Osoba 13 | C48: Společnost 26 | D48: Pití | E48: 2016-09-18T20:10:56 | F48: 1.15740695e-05 | G48: 2016-09-18T20:10:57 | J48: Range("D_Od"), Operator:=xlAnd, Criteria2:=Range("D_Do")
B49: Osoba 13 | C49: Společnost 27 | D49: Učení | E49: 2016-09-18T20:21:04 | F49: 1.15740695e-05 | G49: 2016-09-18T20:21:05
B50: Osoba 14 | C50: Společnost 28 | D50: Učení | E50: 2016-09-22T17:59:31 | F50: 1.15740695e-05 | G50: 2016-09-22T17:59:32 | J50: Sheets("List1").Select
B51: Osoba 13 | C51: Společnost 18 | D51: Odpočinek | E51: 2016-09-22T18:19:25 | F51: 1.15740695e-05 | G51: 2016-09-22T18:19:26 | J51: Range("A1").Select
B52: Osoba 13 | C52: Společnost 19 | D52: Odpočinek | E52: 2016-09-22T18:25:23 | F52: 1.15740695e-05 | G52: 2016-09-22T18:25:24
B53: Osoba 13 | C53: Společnost 20 | D53: Odpočinek | E53: 2016-09-22T18:28:31 | F53: 1.15740695e-05 | G53: 2016-09-22T18:28:32
B54: Osoba 13 | C54: Společnost 21 | D54: Pocec | E54: 2016-09-22T19:03:56 | F54: 1.15740695e-05 | G54: 2016-09-22T19:03:57 | J54: Zrušit filtr
B55: Osoba 13 | C55: Společnost 22 | D55: Učení | E55: 2016-09-22T19:28:48 | F55: 1.15740695e-05 | G55: 2016-09-22T19:28:49 | J55: Sheets("Všechny záznamy").Activate
B56: Osoba 13 | C56: Společnost 23 | D56: Jídlo | E56: 2016-09-22T19:42:37 | F56: 1.15740695e-05 | G56: 2016-09-22T19:42:38 | J56: Sheets("Všechny záznamy").Range("A1:I1").Select
B57: Osoba 13 | C57: Společnost 24 | D57: Odpočinek | E57: 2016-09-22T19:46:20 | F57: 1.15740695e-05 | G57: 2016-09-22T19:46:21 | J57: Selection.AutoFilter
B58: Osoba 13 | C58: Společnost 25 | D58: Pití | E58: 2016-09-22T20:04:10 | F58: 1.15740695e-05 | G58: 2016-09-22T20:04:11
B59: Osoba 13 | C59: Společnost 26 | D59: Pití | E59: 2016-09-22T20:10:56 | F59: 1.15740695e-05 | G59: 2016-09-22T20:10:57 | J59: Sheets("List1").Select
B60: Osoba 13 | C60: Společnost 27 | D60: Učení | E60: 2016-09-22T20:21:04 | F60: 1.15740695e-05 | G60: 2016-09-22T20:21:05 | J60: Range("A1").Select
B61: Osoba 14 | C61: Společnost 28 | D61: Učení | E61: 2016-09-24T17:59:31 | F61: 1.15740695e-05 | G61: 2016-09-24T17:59:32
B62: Osoba 14 | C62: Společnost 28 | D62: Učení | E62: 2016-09-27T17:59:31 | F62: 1.15740695e-05 | G62: 2016-09-27T17:59:32
B63: Osoba 15 | C63: Společnost 29 | D63: Pocec | E63: 2016-07-08T13:51:06 | F63: 1.157407678e-05 | G63: 2016-07-08T13:51:07
B64: Osoba 16 | C64: Společnost 30 | D64: Jídlo | E64: 2016-07-11T09:11:30 | F64: 1.157407678e-05 | G64: 2016-07-11T09:11:31 | J64: Kopírování
B65: Osoba 2 | C65: Společnost 2 | D65: Pití | E65: 2016-07-11T13:14:16 | F65: 1.157407678e-05 | G65: 2016-07-11T13:14:17 | J65: Sheets("Všechny záznamy").Activate
B66: Osoba 2 | C66: Společnost 2 | D66: Pocec | E66: 2016-07-11T13:15:53 | F66: 1.157407678e-05 | G66: 2016-07-11T13:15:54 | J66: Sheets("Všechny záznamy").Range("C1:H1895").Select
B67: Osoba 11 | C67: Společnost 31 | D67: Kreslení | E67: 2016-07-12T19:25:12 | F67: 1.157407678e-05 | G67: 2016-07-12T19:25:13 | J67: Selection.Copy
B68: Osoba 11 | C68: Společnost 31 | D68: Procházka | E68: 2016-07-12T19:26:01 | F68: 1.157407678e-05 | G68: 2016-07-12T19:26:02
B69: Osoba 3 | C69: Společnost 11 | D69: Jídlo | E69: 2016-07-12T01:02:37 | F69: 1.157407678e-05 | G69: 2016-07-12T01:02:38 | J69: Sheets("List1").Activate
B70: Osoba 5 | C70: Společnost 21 | D70: Procházka | E70: 2016-07-12T19:37:16 | F70: 1.157407678e-05 | G70: 2016-07-12T19:37:17 | J70: Sheets("List1").Range("B17:G17").Select
B71: Osoba 17 | C71: Společnost 2 | D71: Odpočinek | E71: 2016-07-14T14:49:04 | F71: 1.157407678e-05 | G71: 2016-07-14T14:49:05
B72: Osoba 18 | C72: Společnost 6 | D72: Jídlo | E72: 2016-07-14T14:51:42 | F72: 1.157407678e-05 | G72: 2016-07-14T14:51:43 | J72: ActiveSheet.Paste
B73: Osoba 3 | C73: Společnost 32 | D73: Kreslení | E73: 2016-07-14T13:07:16 | F73: 1.157407678e-05 | G73: 2016-07-14T13:07:17
B74: Osoba 3 | C74: Společnost 33 | D74: Učení | E74: 2016-07-14T13:07:27 | F74: 1.157407678e-05 | G74: 2016-07-14T13:07:28
B75: Osoba 3 | C75: Společnost 34 | D75: Odpočinek | E75: 2016-07-14T13:08:42 | F75: 1.157407678e-05 | G75: 2016-07-14T13:08:43
B76: Osoba 3 | C76: Společnost 35 | D76: Odpočinek | E76: 2016-07-14T14:48:10 | F76: 1.157407678e-05 | G76: 2016-07-14T14:48:11
B77: Osoba 3 | C77: Společnost 34 | D77: Odpočinek | E77: 2016-07-14T14:48:26 | F77: 1.157407678e-05 | G77: 2016-07-14T14:48:27 | J77: Smazat
B78: Osoba 4 | C78: Společnost 7 | D78: Jídlo | E78: 2016-07-18T02:44:50 | F78: 1.157407678e-05 | G78: 2016-07-18T02:44:51 | J78: Sheets("List1").Range("B17:G17").ClearContents
B79: Osoba 5 | C79: Společnost 8 | D79: Jídlo | E79: 2016-07-18T02:41:24 | F79: 1.157407678e-05 | G79: 2016-07-18T02:41:25
B80: Osoba 18 | C80: Společnost 7 | D80: Jídlo | E80: 2016-07-18T13:14:11 | F80: 1.157407678e-05 | G80: 2016-07-18T13:14:12
B81: Osoba 12 | C81: Společnost 17 | D81: Kreslení | E81: 2016-07-20T05:09:07 | F81: 1.157407678e-05 | G81: 2016-07-20T05:09:08
B82: Osoba 18 | C82: Společnost 36 | D82: Odpočinek | E82: 2016-08-01T13:38:25 | F82: =G82-E82 -> 1.157407678e-05 | G82: 2016-08-01T13:38:26
B83: Osoba 7 | C83: Společnost 11 | D83: Učení | E83: 2016-08-01T23:51:55 | F83: 1.157407678e-05 | G83: 2016-08-01T23:51:56
B84: Osoba 7 | C84: Společnost 11 | D84: Odpočinek | E84: 2016-08-01T23:52:54 | F84: 1.157407678e-05 | G84: 2016-08-01T23:52:55
B85: Osoba 3 | C85: Společnost 37 | D85: Kreslení | E85: 2016-08-16T10:41:03 | F85: 1.157407678e-05 | G85: 2016-08-16T10:41:04
B86: Osoba 10 | C86: Společnost 38 | D86: Pocec | E86: 2016-08-16T06:55:31 | F86: 1.157407678e-05 | G86: 2016-08-16T06:55:32
B87: Osoba 19 | C87: Společnost 1 | D87: Učení | E87: 2016-08-16T09:20:39 | F87: 1.157407678e-05 | G87: 2016-08-16T09:20:40
B88: Osoba 10 | C88: Společnost 32 | D88: Lození | E88: 2016-08-16T10:36:24 | F88: 1.157407678e-05 | G88: 2016-08-16T10:36:25
B89: Osoba 11 | C89: Společnost 39 | D89: Jídlo | E89: 2016-08-19T07:01:24 | F89: 1.157407678e-05 | G89: 2016-08-19T07:01:25
B90: Osoba 11 | C90: Společnost 11 | D90: Procházka | E90: 2016-08-19T12:08:47 | F90: 1.157407678e-05 | G90: 2016-08-19T12:08:48
B91: Osoba 7 | C91: Společnost 6 | D91: Učení | E91: 2016-08-19T11:11:54 | F91: 1.157407678e-05 | G91: 2016-08-19T11:11:55
B92: Osoba 10 | C92: Společnost 40 | D92: Procházka | E92: 2016-08-20T18:20:40 | F92: 1.157407678e-05 | G92: 2016-08-20T18:20:41
B93: Osoba 6 | C93: Společnost 41 | D93: Lození | E93: 2016-08-21T08:24:38 | F93: 1.157407678e-05 | G93: 2016-08-21T08:24:39
B94: Osoba 12 | C94: Společnost 42 | D94: Kreslení | E94: 2016-08-22T16:12:55 | F94: 1.157407678e-05 | G94: 2016-08-22T16:12:56
B95: Osoba 11 | C95: Společnost 39 | D95: Jídlo | E95: 2016-09-02T07:01:24 | F95: 1.157407678e-05 | G95: 2016-09-02T07:01:25
B96: Osoba 11 | C96: Společnost 11 | D96: Procházka | E96: 2016-09-02T12:08:47 | F96: 1.157407678e-05 | G96: 2016-09-02T12:08:48
B97: Osoba 7 | C97: Společnost 6 | D97: Učení | E97: 2016-09-02T11:11:54 | F97: 1.157407678e-05 | G97: 2016-09-02T11:11:55
B98: Osoba 13 | C98: Společnost 43 | D98: Pocec | E98: 2016-09-18T19:05:15 | F98: 1.157407678e-05 | G98: 2016-09-18T19:05:16
B99: Osoba 13 | C99: Společnost 44 | D99: Pití | E99: 2016-09-18T19:15:18 | F99: 1.157407678e-05 | G99: 2016-09-18T19:15:19
B100: Osoba 13 | C100: Společnost 44 | D100: Pití | E100: 2016-09-18T19:20:27 | F100: 1.157407678e-05 | G100: 2016-09-18T19:20:28
B101: Osoba 13 | C101: Společnost 22 | D101: Kreslení | E101: 2016-09-18T19:27:20 | F101: 1.157407678e-05 | G101: 2016-09-18T19:27:21
B102: Osoba 13 | C102: Společnost 22 | D102: Pití | E102: 2016-09-18T19:32:44 | F102: 1.157407678e-05 | G102: 2016-09-18T19:32:45
B103: Osoba 13 | C103: Společnost 18 | D103: Jídlo | E103: 2016-09-18T19:44:36 | F103: 1.157407678e-05 | G103: 2016-09-18T19:44:37
B104: Osoba 13 | C104: Společnost 21 | D104: Kreslení | E104: 2016-09-18T19:56:32 | F104: 1.157407678e-05 | G104: 2016-09-18T19:56:33
B105: Osoba 13 | C105: Společnost 21 | D105: Jídlo | E105: 2016-09-18T19:58:06 | F105: 1.157407678e-05 | G105: 2016-09-18T19:58:07
B106: Osoba 13 | C106: Společnost 21 | D106: Učení | E106: 2016-09-18T19:58:33 | F106: 1.157407678e-05 | G106: 2016-09-18T19:58:34
B107: Osoba 13 | C107: Společnost 25 | D107: Jídlo | E107: 2016-09-18T20:06:47 | F107: 1.157407678e-05 | G107: 2016-09-18T20:06:48
B108: Osoba 13 | C108: Společnost 26 | D108: Učení | E108: 2016-09-18T20:15:50 | F108: 1.157407678e-05 | G108: 2016-09-18T20:15:51
B109: Osoba 13 | C109: Společnost 27 | D109: Pití | E109: 2016-09-18T20:18:10 | F109: 1.157407678e-05 | G109: 2016-09-18T20:18:11
B110: Osoba 13 | C110: Společnost 27 | D110: Jídlo | E110: 2016-09-18T20:19:25 | F110: 1.157407678e-05 | G110: 2016-09-18T20:19:26
B111: Osoba 13 | C111: Společnost 27 | D111: Jídlo | E111: 2016-09-18T20:20:03 | F111: 1.157407678e-05 | G111: 2016-09-18T20:20:04
B112: Osoba 13 | C112: Společnost 6 | D112: Pocec | E112: 2016-09-22T17:58:45 | F112: 1.157407678e-05 | G112: 2016-09-22T17:58:46
B113: Osoba 13 | C113: Společnost 45 | D113: Čtení | E113: 2016-09-22T13:32:38 | F113: 1.157407678e-05 | G113: 2016-09-22T13:32:39
B114: Osoba 13 | C114: Společnost 45 | D114: Procházka | E114: 2016-09-22T13:33:00 | F114: 1.157407678e-05 | G114: 2016-09-22T13:33:01
B115: Osoba 20 | C115: Společnost 46 | D115: Pití | E115: 2016-09-22T16:07:35 | F115: 1.157407678e-05 | G115: 2016-09-22T16:07:36
B116: Osoba 12 | C116: Společnost 42 | D116: Kreslení | E116: 2016-09-22T16:12:55 | F116: 1.157407678e-05 | G116: 2016-09-22T16:12:56
B117: Osoba 13 | C117: Společnost 43 | D117: Pocec | E117: 2016-09-22T19:05:15 | F117: 1.157407678e-05 | G117: 2016-09-22T19:05:16
B118: Osoba 13 | C118: Společnost 44 | D118: Pití | E118: 2016-09-22T19:15:18 | F118: 1.157407678e-05 | G118: 2016-09-22T19:15:19
B119: Osoba 13 | C119: Společnost 44 | D119: Pití | E119: 2016-09-22T19:20:27 | F119: 1.157407678e-05 | G119: 2016-09-22T19:20:28
B120: Osoba 13 | C120: Společnost 22 | D120: Kreslení | E120: 2016-09-22T19:27:20 | F120: 1.157407678e-05 | G120: 2016-09-22T19:27:21
B121: Osoba 13 | C121: Společnost 22 | D121: Pití | E121: 2016-09-22T19:32:44 | F121: 1.157407678e-05 | G121: 2016-09-22T19:32:45
B122: Osoba 13 | C122: Společnost 18 | D122: Jídlo | E122: 2016-09-22T19:44:36 | F122: 1.157407678e-05 | G122: 2016-09-22T19:44:37
B123: Osoba 13 | C123: Společnost 21 | D123: Kreslení | E123: 2016-09-22T19:56:32 | F123: 1.157407678e-05 | G123: 2016-09-22T19:56:33
B124: Osoba 13 | C124: Společnost 21 | D124: Jídlo | E124: 2016-09-22T19:58:06 | F124: 1.157407678e-05 | G124: 2016-09-22T19:58:07
B125: Osoba 13 | C125: Společnost 21 | D125: Učení | E125: 2016-09-22T19:58:33 | F125: 1.157407678e-05 | G125: 2016-09-22T19:58:34
B126: Osoba 13 | C126: Společnost 25 | D126: Jídlo | E126: 2016-09-22T20:06:47 | F126: 1.157407678e-05 | G126: 2016-09-22T20:06:48
B127: Osoba 13 | C127: Společnost 26 | D127: Učení | E127: 2016-09-22T20:15:50 | F127: 1.157407678e-05 | G127: 2016-09-22T20:15:51
B128: Osoba 13 | C128: Společnost 27 | D128: Pití | E128: 2016-09-22T20:18:10 | F128: 1.157407678e-05 | G128: 2016-09-22T20:18:11
B129: Osoba 13 | C129: Společnost 27 | D129: Jídlo | E129: 2016-09-22T20:19:25 | F129: 1.157407678e-05 | G129: 2016-09-22T20:19:26
B130: Osoba 13 | C130: Společnost 27 | D130: Jídlo | E130: 2016-09-22T20:20:03 | F130: 1.157407678e-05 | G130: 2016-09-22T20:20:04
B131: Osoba 13 | C131: Společnost 6 | D131: Pocec | E131: 2016-09-24T17:58:45 | F131: 1.157407678e-05 | G131: 2016-09-24T17:58:46
B132: Osoba 13 | C132: Společnost 45 | D132: Čtení | E132: 2016-09-24T13:32:38 | F132: 1.157407678e-05 | G132: 2016-09-24T13:32:39
B133: Osoba 13 | C133: Společnost 45 | D133: Procházka | E133: 2016-09-24T13:33:00 | F133: 1.157407678e-05 | G133: 2016-09-24T13:33:01
B134: Osoba 20 | C134: Společnost 46 | D134: Pití | E134: 2016-09-24T16:07:35 | F134: 1.157407678e-05 | G134: 2016-09-24T16:07:36
B135: Osoba 12 | C135: Společnost 42 | D135: Kreslení | E135: 2016-09-24T16:12:55 | F135: 1.157407678e-05 | G135: 2016-09-24T16:12:56
B136: Osoba 13 | C136: Společnost 6 | D136: Pocec | E136: 2016-09-27T17:58:45 | F136: 1.157407678e-05 | G136: 2016-09-27T17:58:46
B137: Osoba 13 | C137: Společnost 45 | D137: Čtení | E137: 2016-09-27T13:32:38 | F137: 1.157407678e-05 | G137: 2016-09-27T13:32:39
B138: Osoba 13 | C138: Společnost 45 | D138: Procházka | E138: 2016-09-27T13:33:00 | F138: 1.157407678e-05 | G138: 2016-09-27T13:33:01
B139: Osoba 20 | C139: Společnost 46 | D139: Pití | E139: 2016-09-27T16:07:35 | F139: 1.157407678e-05 | G139: 2016-09-27T16:07:36
B140: Osoba 12 | C140: Společnost 42 | D140: Kreslení | E140: 2016-09-27T16:12:55 | F140: 1.157407678e-05 | G140: 2016-09-27T16:12:56
B141: Osoba 21 | C141: Společnost 17 | D141: Pocec | E141: 2016-06-23T17:43:38 | F141: 2.314814628e-05 | G141: 2016-06-23T17:43:40
B142: Osoba 22 | C142: Společnost 2 | D142: Odpočinek | E142: 2016-06-24T22:23:04 | F142: 2.314814628e-05 | G142: 2016-06-24T22:23:06
B143: Osoba 14 | C143: Společnost 17 | D143: Odpočinek | E143: 2016-07-07T11:18:41 | F143: 2.314814628e-05 | G143: 2016-07-07T11:18:43
B144: Osoba 1 | C144: Společnost 10 | D144: Pití | E144: 2016-07-11T16:02:32 | F144: 2.314814628e-05 | G144: 2016-07-11T16:02:34
B145: Osoba 11 | C145: Společnost 34 | D145: Lození | E145: 2016-07-11T16:17:31 | F145: 2.314814628e-05 | G145: 2016-07-11T16:17:33
B146: Osoba 23 | C146: Společnost 47 | D146: Kreslení | E146: 2016-07-11T16:21:33 | F146: =G146-E146 -> 2.314814628e-05 | G146: 2016-07-11T16:21:35
B147: Osoba 23 | C147: Společnost 48 | D147: Učení | E147: 2016-07-11T16:21:53 | F147: 2.314814628e-05 | G147: 2016-07-11T16:21:55
B148: Osoba 10 | C148: Společnost 11 | D148: Jídlo | E148: 2016-07-11T16:17:21 | F148: 2.314814628e-05 | G148: 2016-07-11T16:17:23
B149: Osoba 10 | C149: Společnost 11 | D149: Procházka | E149: 2016-07-11T16:17:32 | F149: 2.314814628e-05 | G149: 2016-07-11T16:17:34
B150: Osoba 24 | C150: Společnost 8 | D150: Odpočinek | E150: 2016-07-11T01:06:59 | F150: 2.314814628e-05 | G150: 2016-07-11T01:07:01
B151: Osoba 11 | C151: Společnost 11 | D151: Procházka | E151: 2016-07-12T19:23:27 | F151: 2.314814628e-05 | G151: 2016-07-12T19:23:29
B152: Osoba 11 | C152: Společnost 49 | D152: Pocec | E152: 2016-07-12T19:24:16 | F152: 2.314814628e-05 | G152: 2016-07-12T19:24:18
B153: Osoba 18 | C153: Společnost 47 | D153: Procházka | E153: 2016-07-14T15:19:38 | F153: 2.314814628e-05 | G153: 2016-07-14T15:19:40
B154: Osoba 25 | C154: Společnost 7 | D154: Odpočinek | E154: 2016-07-18T02:44:05 | F154: 2.314814628e-05 | G154: 2016-07-18T02:44:07
B155: Osoba 25 | C155: Společnost 7 | D155: Jídlo | E155: 2016-07-18T02:44:16 | F155: 2.314814628e-05 | G155: 2016-07-18T02:44:18
B156: Osoba 5 | C156: Společnost 8 | D156: Kreslení | E156: 2016-07-18T02:40:30 | F156: 2.314814628e-05 | G156: 2016-07-18T02:40:32
B157: Osoba 5 | C157: Společnost 8 | D157: Pití | E157: 2016-07-18T02:40:38 | F157: 2.314814628e-05 | G157: 2016-07-18T02:40:40
B158: Osoba 5 | C158: Společnost 9 | D158: Odpočinek | E158: 2016-07-18T02:41:36 | F158: 2.314814628e-05 | G158: 2016-07-18T02:41:38
B159: Osoba 5 | C159: Společnost 9 | D159: Kreslení | E159: 2016-07-18T02:41:53 | F159: 2.314814628e-05 | G159: 2016-07-18T02:41:55
B160: Osoba 5 | C160: Společnost 9 | D160: Pocec | E160: 2016-07-18T02:42:32 | F160: 2.314814628e-05 | G160: 2016-07-18T02:42:34
B161: Osoba 5 | C161: Společnost 50 | D161: Odpočinek | E161: 2016-07-20T01:02:29 | F161: 2.314814628e-05 | G161: 2016-07-20T01:02:31
B162: Osoba 5 | C162: Společnost 50 | D162: Pocec | E162: 2016-07-20T01:02:43 | F162: 2.314814628e-05 | G162: 2016-07-20T01:02:45
B163: Osoba 18 | C163: Společnost 39 | D163: Pocec | E163: 2016-08-01T13:37:56 | F163: 2.314814628e-05 | G163: 2016-08-01T13:37:58
B164: Osoba 26 | C164: Společnost 51 | D164: Odpočinek | E164: 2016-08-02T14:43:44 | F164: 2.314814628e-05 | G164: 2016-08-02T14:43:46
B165: Osoba 26 | C165: Společnost 51 | D165: Odpočinek | E165: 2016-08-03T14:43:44 | F165: 2.314814628e-05 | G165: 2016-08-03T14:43:46
B166: Osoba 26 | C166: Společnost 51 | D166: Odpočinek | E166: 2016-08-04T14:43:44 | F166: 2.314814628e-05 | G166: 2016-08-04T14:43:46
B167: Osoba 26 | C167: Společnost 51 | D167: Odpočinek | E167: 2016-08-08T14:43:44 | F167: 2.314814628e-05 | G167: 2016-08-08T14:43:46
B168: Osoba 8 | C168: Společnost 12 | D168: Kreslení | E168: 2016-08-08T14:12:06 | F168: 2.314814628e-05 | G168: 2016-08-08T14:12:08
B169: Osoba 8 | C169: Společnost 12 | D169: Odpočinek | E169: 2016-08-08T14:13:15 | F169: 2.314814628e-05 | G169: 2016-08-08T14:13:17
B170: Osoba 8 | C170: Společnost 12 | D170: Odpočinek | E170: 2016-08-08T14:13:31 | F170: 2.314814628e-05 | G170: 2016-08-08T14:13:33
B171: Osoba 9 | C171: Společnost 38 | D171: Kreslení | E171: 2016-08-11T06:36:46 | F171: 2.314814628e-05 | G171: 2016-08-11T06:36:48
B172: Osoba 10 | C172: Společnost 52 | D172: Pocec | E172: 2016-08-16T06:29:02 | F172: 2.314814628e-05 | G172: 2016-08-16T06:29:04
B173: Osoba 26 | C173: Společnost 51 | D173: Odpočinek | E173: 2016-08-19T14:43:44 | F173: 2.314814628e-05 | G173: 2016-08-19T14:43:46
B174: Osoba 21 | C174: Společnost 53 | D174: Procházka | E174: 2016-09-18T09:09:34 | F174: 2.314814628e-05 | G174: 2016-09-18T09:09:36
B175: Osoba 13 | C175: Společnost 45 | D175: Odpočinek | E175: 2016-09-18T18:04:02 | F175: 2.314814628e-05 | G175: 2016-09-18T18:04:04
B176: Osoba 13 | C176: Společnost 24 | D176: Odpočinek | E176: 2016-09-18T18:06:54 | F176: 2.314814628e-05 | G176: 2016-09-18T18:06:56
B177: Osoba 13 | C177: Společnost 54 | D177: Odpočinek | E177: 2016-09-18T18:32:48 | F177: 2.314814628e-05 | G177: 2016-09-18T18:32:50
B178: Osoba 13 | C178: Společnost 43 | D178: Odpočinek | E178: 2016-09-18T18:34:07 | F178: 2.314814628e-05 | G178: 2016-09-18T18:34:09
B179: Osoba 13 | C179: Společnost 44 | D179: Jídlo | E179: 2016-09-18T19:18:42 | F179: 2.314814628e-05 | G179: 2016-09-18T19:18:44
B180: Osoba 13 | C180: Společnost 45 | D180: Učení | E180: 2016-09-18T19:25:00 | F180: 2.314814628e-05 | G180: 2016-09-18T19:25:02
B181: Osoba 13 | C181: Společnost 22 | D181: Jídlo | E181: 2016-09-18T19:30:41 | F181: 2.314814628e-05 | G181: 2016-09-18T19:30:43
B182: Osoba 13 | C182: Společnost 55 | D182: Odpočinek | E182: 2016-09-18T19:35:37 | F182: 2.314814628e-05 | G182: 2016-09-18T19:35:39
B183: Osoba 13 | C183: Společnost 55 | D183: Jídlo | E183: 2016-09-18T19:40:32 | F183: 2.314814628e-05 | G183: 2016-09-18T19:40:34
B184: Osoba 13 | C184: Společnost 56 | D184: Jídlo | E184: 2016-09-18T19:53:43 | F184: 2.314814628e-05 | G184: 2016-09-18T19:53:45
B185: Osoba 13 | C185: Společnost 20 | D185: Jídlo | E185: 2016-09-18T20:24:25 | F185: 2.314814628e-05 | G185: 2016-09-18T20:24:27
B186: Osoba 13 | C186: Společnost 6 | D186: Kreslení | E186: 2016-09-22T17:58:27 | F186: 2.314814628e-05 | G186: 2016-09-22T17:58:29
B187: Osoba 21 | C187: Společnost 53 | D187: Procházka | E187: 2016-09-22T09:09:34 | F187: 2.314814628e-05 | G187: 2016-09-22T09:09:36
B188: Osoba 13 | C188: Společnost 45 | D188: Odpočinek | E188: 2016-09-22T18:04:02 | F188: 2.314814628e-05 | G188: 2016-09-22T18:04:04
B189: Osoba 13 | C189: Společnost 24 | D189: Odpočinek | E189: 2016-09-22T18:06:54 | F189: 2.314814628e-05 | G189: 2016-09-22T18:06:56
B190: Osoba 13 | C190: Společnost 54 | D190: Odpočinek | E190: 2016-09-22T18:32:48 | F190: 2.314814628e-05 | G190: 2016-09-22T18:32:50
B191: Osoba 13 | C191: Společnost 43 | D191: Odpočinek | E191: 2016-09-22T18:34:07 | F191: 2.314814628e-05 | G191: 2016-09-22T18:34:09
B192: Osoba 13 | C192: Společnost 44 | D192: Jídlo | E192: 2016-09-22T19:18:42 | F192: 2.314814628e-05 | G192: 2016-09-22T19:18:44
B193: Osoba 13 | C193: Společnost 45 | D193: Učení | E193: 2016-09-22T19:25:00 | F193: 2.314814628e-05 | G193: 2016-09-22T19:25:02
B194: Osoba 13 | C194: Společnost 22 | D194: Jídlo | E194: 2016-09-22T19:30:41 | F194: 2.314814628e-05 | G194: 2016-09-22T19:30:43
B195: Osoba 13 | C195: Společnost 55 | D195: Odpočinek | E195: 2016-09-22T19:35:37 | F195: 2.314814628e-05 | G195: 2016-09-22T19:35:39
B196: Osoba 13 | C196: Společnost 55 | D196: Jídlo | E196: 2016-09-22T19:40:32 | F196: 2.314814628e-05 | G196: 2016-09-22T19:40:34
B197: Osoba 13 | C197: Společnost 56 | D197: Jídlo | E197: 2016-09-22T19:53:43 | F197: 2.314814628e-05 | G197: 2016-09-22T19:53:45
B198: Osoba 13 | C198: Společnost 20 | D198: Jídlo | E198: 2016-09-22T20:24:25 | F198: 2.314814628e-05 | G198: 2016-09-22T20:24:27
B199: Osoba 13 | C199: Společnost 6 | D199: Kreslení | E199: 2016-09-24T17:58:27 | F199: 2.314814628e-05 | G199: 2016-09-24T17:58:29
B200: Osoba 13 | C200: Společnost 6 | D200: Kreslení | E200: 2016-09-27T17:58:27 | F200: 2.314814628e-05 | G200: 2016-09-27T17:58:29
B201: Osoba 6 | C201: Společnost 28 | D201: Odpočinek | E201: 2016-08-01T16:17:58 | F201: 2.314815356e-05 | G201: 2016-08-01T16:18:00
B202: Osoba 11 | C202: Společnost 57 | D202: Kreslení | E202: 2016-08-19T06:24:03 | F202: 2.314815356e-05 | G202: 2016-08-19T06:24:05
B203: Osoba 27 | C203: Společnost 6 | D203: Kreslení | E203: 2016-08-19T05:56:08 | F203: 2.314815356e-05 | G203: 2016-08-19T05:56:10
... 1691 more rows

Sheet Data
A1: Login uživatele | C1: Společnost | E1: Činnost
A2: Osoba 1 | C2: Společnost 1 | E2: Odpočinek
A3: Osoba 2 | C3: Společnost 2 | E3: Kreslení
A4: Osoba 3 | C4: Společnost 3 | E4: Jídlo
A5: Osoba 4 | C5: Společnost 4 | E5: Pití
A6: Osoba 5 | C6: Společnost 5 | E6: Procházka
A7: Osoba 6 | C7: Společnost 6 | E7: Lození
A8: Osoba 7 | C8: Společnost 7 | E8: Učení
A9: Osoba 8 | C9: Společnost 8 | E9: Neučení
A10: Osoba 9 | C10: Společnost 9 | E10: Pocec
A11: Osoba 10 | C11: Společnost 10 | E11: Čtení
A12: Osoba 11 | C12: Společnost 11 | E12: Psaní
A13: Osoba 12 | C13: Společnost 12 | E13: Počítaní
A14: Osoba 13 | C14: Společnost 13 | E14: Hádaní
A15: Osoba 14 | C15: Společnost 14 | E15: Telefonování
A16: Osoba 15 | C16: Společnost 15 | E16: Facebook
A17: Osoba 16 | C17: Společnost 16 | E17: Internet
A18: Osoba 17 | C18: Společnost 17 | E18: Hry
A19: Osoba 18 | C19: Společnost 18 | E19: Hledání
A20: Osoba 19 | C20: Společnost 19 | E20: Koupání
A21: Osoba 20 | C21: Společnost 20 | E21: Testování
A22: Osoba 21 | C22: Společnost 21 | E22: Uklízení
A23: Osoba 22 | C23: Společnost 22 | E23: Neuklízení
A24: Osoba 23 | C24: Společnost 23 | E24: Problémy
A25: Osoba 24 | C25: Společnost 24
A26: Osoba 25 | C26: Společnost 25
A27: Osoba 26 | C27: Společnost 26
A28: Osoba 27 | C28: Společnost 27
A29: Osoba 28 | C29: Společnost 28
A30: Osoba 29 | C30: Společnost 29
A31: Osoba 30 | C31: Společnost 30
A32: Osoba 31 | C32: Společnost 31
A33: Osoba 32 | C33: Společnost 32
A34: Osoba 33 | C34: Společnost 33
A35: Osoba 34 | C35: Společnost 34
A36: Osoba 35 | C36: Společnost 35
A37: Osoba 36 | C37: Společnost 36
A38: Osoba 37 | C38: Společnost 37
A39: Osoba 38 | C39: Společnost 38
A40: Osoba 39 | C40: Společnost 39
A41: Osoba 40 | C41: Společnost 40
C42: Společnost 41
C43: Společnost 42
C44: Společnost 43
C45: Společnost 44
C46: Společnost 45
C47: Společnost 46
C48: Společnost 47
C49: Společnost 48
C50: Společnost 49
C51: Společnost 50
C52: Společnost 51
C53: Společnost 52
C54: Společnost 53
C55: Společnost 54
C56: Společnost 55
C57: Společnost 56
C58: Společnost 57
C59: Společnost 58
C60: Společnost 59
C61: Společnost 60
C62: Společnost 61
C63: Společnost 62
C64: Společnost 63
C65: Společnost 64
C66: Společnost 65
C67: Společnost 66
C68: Společnost 67
C69: Společnost 68
C70: Společnost 69
C71: Společnost 70
C72: Společnost 71
C73: Společnost 72
C74: Společnost 73
C75: Společnost 74
C76: Společnost 75
C77: Společnost 76
C78: Společnost 77
C79: Společnost 78
C80: Společnost 79
C81: Společnost 80
C82: Společnost 81
C83: Společnost 82
C84: Společnost 83
C85: Společnost 84
C86: Společnost 85
C87: Společnost 86
C88: Společnost 87
C89: Společnost 88
C90: Společnost 89
C91: Společnost 90
C92: Společnost 91
C93: Společnost 92
C94: Společnost 93
C95: Společnost 94
C96: Společnost 95
C97: Společnost 96
C98: Společnost 97
C99: Společnost 98
C100: Společnost 99
C101: Společnost 100
C102: Společnost 101
C103: Společnost 102
C104: Společnost 103
C105: Společnost 104
C106: Společnost 105
C107: Společnost 106
C108: Společnost 107
C109: Společnost 108
C110: Společnost 109
C111: Společnost 110
C112: Společnost 111
C113: Společnost 112
C114: Společnost 113
C115: Společnost 114
C116: Společnost 115
C117: Společnost 116
C118: Společnost 117
C119: Společnost 118
C120: Společnost 119
C121: Společnost 120
C122: Společnost 121
C123: Společnost 122
C124: Společnost 123
C125: Společnost 124
C126: Společnost 125
C127: Společnost 126
C128: Společnost 127
C129: Společnost 128
C130: Společnost 129
C131: Společnost 130
